[Event "*** Titled Tuesday Blitz"]
[Site "Chess.com"]
[Date "2021.03.30"]
[Round "10"]
[White "ecwinslow"]
[Black "sergeikim"]
[Result "1/2-1/2"]
[WhiteElo "2315"]
[BlackElo "2511"]
[TimeControl "180+1"]
[EndTime "11:59:31 PDT"]
[Termination "Game drawn by repetition"]

1. e4 {[%clk 0:03:00.9]} 1... e5 {[%clk 0:02:59.6]} 2. Nf3 {[%clk 0:03:00]} 2...
Nc6 {[%clk 0:02:59.4]} 3. Bb5 {[%clk 0:03:00]} 3... a6 {[%clk 0:02:59.3]} 4. Ba4
{[%clk 0:03:00.3]} 4... Nf6 {[%clk 0:02:58.8]} 5. O-O {[%clk 0:03:00.3]} 5... b5
{[%clk 0:02:58.2]} 6. Bb3 {[%clk 0:02:59.5]} 6... Bc5 {[%clk 0:02:57.7]} 7. c3
{[%clk 0:02:55.5]} 7... d6 {[%clk 0:02:57.6]} 8. a4 {[%clk 0:02:54.4]} 8... Bb7
{[%clk 0:02:56.7]} 9. Re1 {[%clk 0:02:50.1]} 9... h6 {[%clk 0:02:54]} 10. d4
{[%clk 0:02:47.8]} 10... Bb6 {[%clk 0:02:53.5]} 11. h3 {[%clk 0:02:33.1]} 11...
O-O {[%clk 0:02:52]} 12. a5 {[%clk 0:02:32.9]} 12... Ba7 {[%clk 0:02:50.3]} 13.
d5 {[%clk 0:02:22.7]} 13... Ne7 {[%clk 0:02:49.1]} 14. Nbd2 {[%clk 0:02:20.9]}
14... c6 {[%clk 0:02:40.2]} 15. dxc6 {[%clk 0:02:15.9]} 15... Bxc6 {[%clk
0:02:40.1]} 16. Bc2 {[%clk 0:02:12.6]} 16... Ng6 {[%clk 0:02:37.7]} 17. Nf1
{[%clk 0:02:10.1]} 17... Qc7 {[%clk 0:02:29.7]} 18. Ng3 {[%clk 0:02:04.4]} 18...
Rad8 {[%clk 0:02:26.7]} 19. Qe2 {[%clk 0:01:51.9]} 19... Rfe8 {[%clk 0:02:23.4]}
20. Nh2 {[%clk 0:01:50]} 20... Nf4 {[%clk 0:02:16.1]} 21. Qf3 {[%clk 0:01:38.4]}
21... d5 {[%clk 0:02:15.1]} 22. Ng4 {[%clk 0:01:33.8]} 22... Nxe4 {[%clk
0:01:56]} 23. Nxe4 {[%clk 0:01:31.1]} 23... dxe4 {[%clk 0:01:55.4]} 24. Bxe4
{[%clk 0:01:28.8]} 24... Bxe4 {[%clk 0:01:38.5]} 25. Qxe4 {[%clk 0:01:28.3]}
25... Nd3 {[%clk 0:01:31.8]} 26. Re2 {[%clk 0:01:20.2]} 26... h5 {[%clk
0:01:17.1]} 27. Nh2 {[%clk 0:01:01.9]} 27... Qd7 {[%clk 0:00:52.4]} 28. Be3
{[%clk 0:00:54.8]} 28... f5 {[%clk 0:00:51]} 29. Qf3 {[%clk 0:00:51.8]} 29... g6
{[%clk 0:00:46.2]} 30. Bxa7 {[%clk 0:00:48.4]} 30... Qxa7 {[%clk 0:00:45.8]} 31.
Qg3 {[%clk 0:00:46.7]} 31... Qf7 {[%clk 0:00:43.8]} 32. Nf3 {[%clk 0:00:41.7]}
32... e4 {[%clk 0:00:42.2]} 33. Ng5 {[%clk 0:00:32.5]} 33... Qf6 {[%clk
0:00:40]} 34. h4 {[%clk 0:00:31.8]} 34... Qe5 {[%clk 0:00:35.5]} 35. Qe3 {[%clk
0:00:28.5]} 35... Rd7 {[%clk 0:00:32.2]} 36. Qb6 {[%clk 0:00:23.8]} 36... Rd6
{[%clk 0:00:29.5]} 37. Qb7 {[%clk 0:00:20.5]} 37... Qe7 {[%clk 0:00:29]} 38.
Qxe7 {[%clk 0:00:18.1]} 38... Rxe7 {[%clk 0:00:29.1]} 39. g3 {[%clk 0:00:18.3]}
39... Kg7 {[%clk 0:00:28]} 40. b4 {[%clk 0:00:17.9]} 40... Ne5 {[%clk
0:00:26.9]} 41. Kf1 {[%clk 0:00:16.1]} 41... Kf6 {[%clk 0:00:26.2]} 42. Rc1
{[%clk 0:00:14.7]} 42... Rc7 {[%clk 0:00:25.9]} 43. Rec2 {[%clk 0:00:13.6]}
43... Rdc6 {[%clk 0:00:24.9]} 44. Nh3 {[%clk 0:00:12.3]} 44... Nd3 {[%clk
0:00:24.6]} 45. Nf4 {[%clk 0:00:11.1]} 45... Nxc1 {[%clk 0:00:22.1]} 46. Nd5+
{[%clk 0:00:10.8]} 46... Ke5 {[%clk 0:00:22]} 47. Nxc7 {[%clk 0:00:10.8]} 47...
Rxc7 {[%clk 0:00:21.9]} 48. Rxc1 {[%clk 0:00:10]} 48... Rc4 {[%clk 0:00:21.6]}
49. Ke2 {[%clk 0:00:10.1]} 49... f4 {[%clk 0:00:21.6]} 50. gxf4+ {[%clk
0:00:09.6]} 50... Kxf4 {[%clk 0:00:21.8]} 51. Rg1 {[%clk 0:00:09.1]} 51... Rxc3
{[%clk 0:00:21]} 52. Rxg6 {[%clk 0:00:08.5]} 52... Rc2+ {[%clk 0:00:20.9]} 53.
Ke1 {[%clk 0:00:06.8]} 53... Rb2 {[%clk 0:00:20.3]} 54. Rxa6 {[%clk 0:00:06.4]}
54... Rxb4 {[%clk 0:00:19.8]} 55. Rh6 {[%clk 0:00:05.6]} 55... Ra4 {[%clk
0:00:19.2]} 56. Rxh5 {[%clk 0:00:05.3]} 56... Rxa5 {[%clk 0:00:18.3]} 57. Rc5
{[%clk 0:00:05.5]} 57... Kf3 {[%clk 0:00:17.2]} 58. h5 {[%clk 0:00:04.5]} 58...
Ra1+ {[%clk 0:00:15.8]} 59. Kd2 {[%clk 0:00:04.8]} 59... Ra2+ {[%clk 0:00:15.8]}
60. Kd1 {[%clk 0:00:03.2]} 60... Ra1+ {[%clk 0:00:12.7]} 61. Kd2 {[%clk
0:00:02.5]} 61... Ra2+ {[%clk 0:00:12.6]} 62. Kd1 {[%clk 0:00:02.9]} 62... Kxf2
{[%clk 0:00:12.5]} 63. Rf5+ {[%clk 0:00:02.3]} 63... Ke3 {[%clk 0:00:11.4]} 64.
Rxb5 {[%clk 0:00:02.3]} 64... Ra1+ {[%clk 0:00:11.4]} 65. Kc2 {[%clk 0:00:02.7]}
65... Rh1 {[%clk 0:00:11.2]} 66. Rg5 {[%clk 0:00:02.6]} 66... Kf4 {[%clk
0:00:10.6]} 67. Rg8 {[%clk 0:00:02.2]} 67... e3 {[%clk 0:00:10]} 68. Kd3 {[%clk
0:00:02.1]} 68... Rd1+ {[%clk 0:00:08.6]} 69. Ke2 {[%clk 0:00:02.3]} 69... Rd2+
{[%clk 0:00:08.1]} 70. Ke1 {[%clk 0:00:03]} 70... Rh2 {[%clk 0:00:08.4]} 71.
Rf8+ {[%clk 0:00:02.4]} 71... Ke4 {[%clk 0:00:08.4]} 72. Re8+ {[%clk 0:00:02.7]}
72... Kf3 {[%clk 0:00:08.6]} 73. Rf8+ {[%clk 0:00:03]} 73... Kg4 {[%clk
0:00:08.6]} 74. Re8 {[%clk 0:00:02.7]} 74... Kf3 {[%clk 0:00:08.1]} 75. Rf8+
{[%clk 0:00:02.9]} 75... Ke4 {[%clk 0:00:08]} 76. Re8+ {[%clk 0:00:03]} 76...
Kf3 {[%clk 0:00:08.1]} 1/2-1/2

[Event "*** Titled Tuesday Blitz"]
[Site "Chess.com"]
[Date "2021.03.30"]
[Round "10"]
[White "eldur16"]
[Black "WonderChampion"]
[Result "1-0"]
[WhiteElo "2550"]
[BlackElo "2133"]
[TimeControl "180+1"]
[EndTime "11:59:35 PDT"]
[Termination "eldur16 won by resignation"]

1. Nf3 {[%clk 0:03:00.9]} 1... d5 {[%clk 0:02:59.6]} 2. g3 {[%clk 0:03:00.4]}
2... Nf6 {[%clk 0:02:59.4]} 3. Bg2 {[%clk 0:03:00.4]} 3... e6 {[%clk 0:02:59.2]}
4. O-O {[%clk 0:02:59.8]} 4... c5 {[%clk 0:02:59.2]} 5. d3 {[%clk 0:02:59.1]}
5... Nc6 {[%clk 0:02:59.7]} 6. Nbd2 {[%clk 0:02:59.1]} 6... Bd6 {[%clk
0:03:00.2]} 7. e4 {[%clk 0:02:58.8]} 7... O-O {[%clk 0:02:58.5]} 8. Re1 {[%clk
0:02:58.3]} 8... Bc7 {[%clk 0:02:53.1]} 9. c3 {[%clk 0:02:46.2]} 9... dxe4
{[%clk 0:02:49.2]} 10. dxe4 {[%clk 0:02:45.8]} 10... e5 {[%clk 0:02:45.4]} 11.
Qe2 {[%clk 0:02:44.1]} 11... a6 {[%clk 0:02:42.9]} 12. Nc4 {[%clk 0:02:36.2]}
12... Qe7 {[%clk 0:02:42]} 13. a4 {[%clk 0:02:34.4]} 13... Be6 {[%clk
0:02:39.6]} 14. Bg5 {[%clk 0:02:24]} 14... h6 {[%clk 0:02:33.8]} 15. Bxf6 {[%clk
0:02:23.6]} 15... Qxf6 {[%clk 0:02:34.7]} 16. Nfd2 {[%clk 0:02:21.9]} 16... Rfd8
{[%clk 0:02:29.7]} 17. Ne3 {[%clk 0:02:20.9]} 17... Rd7 {[%clk 0:02:24.3]} 18.
Nd5 {[%clk 0:02:18.2]} 18... Bxd5 {[%clk 0:02:21.3]} 19. exd5 {[%clk 0:02:17.6]}
19... Ne7 {[%clk 0:02:20.4]} 20. Ne4 {[%clk 0:02:15.3]} 20... Qb6 {[%clk
0:02:16.6]} 21. a5 {[%clk 0:02:13.9]} 21... Qa7 {[%clk 0:02:14.4]} 22. c4 {[%clk
0:02:13.6]} 22... Rad8 {[%clk 0:02:12.8]} 23. Ra3 {[%clk 0:02:05.3]} 23... f5
{[%clk 0:02:10]} 24. Nc3 {[%clk 0:02:03.9]} 24... Bd6 {[%clk 0:02:08.9]} 25. Na4
{[%clk 0:02:00.6]} 25... Bc7 {[%clk 0:02:04.7]} 26. Nc3 {[%clk 0:01:55.8]} 26...
Bd6 {[%clk 0:02:03.9]} 27. h4 {[%clk 0:01:54.7]} 27... e4 {[%clk 0:02:01.4]} 28.
h5 {[%clk 0:01:51.1]} 28... Be5 {[%clk 0:02:00.2]} 29. Nd1 {[%clk 0:01:47.3]}
29... b6 {[%clk 0:01:55.5]} 30. Ne3 {[%clk 0:01:41.5]} 30... bxa5 {[%clk
0:01:49.1]} 31. Bh3 {[%clk 0:01:38.5]} 31... Rd6 {[%clk 0:01:36.4]} 32. Nxf5
{[%clk 0:01:33.5]} 32... Nxf5 {[%clk 0:01:32.2]} 33. Bxf5 {[%clk 0:01:33.2]}
33... Rf8 {[%clk 0:01:20.7]} 34. Qxe4 {[%clk 0:01:30.7]} 34... Bd4 {[%clk
0:01:18.6]} 35. Rf3 {[%clk 0:01:16.7]} 35... Rdf6 {[%clk 0:01:07.9]} 36. d6
{[%clk 0:01:10.4]} 36... Qa8 {[%clk 0:00:45.1]} 37. d7 {[%clk 0:01:00]} 37...
Qxe4 {[%clk 0:00:42.8]} 38. Rxe4 {[%clk 0:00:58.8]} 38... Rd8 {[%clk 0:00:40.2]}
39. Re8+ {[%clk 0:00:57.2]} 39... Rf8 {[%clk 0:00:40]} 40. Bg6 {[%clk
0:00:53.2]} 40... Bf6 {[%clk 0:00:35.4]} 41. Rd3 {[%clk 0:00:47.4]} 41... Bd4
{[%clk 0:00:31.6]} 42. Rf3 {[%clk 0:00:46.3]} 42... Bf6 {[%clk 0:00:29.6]} 43.
Rxd8 {[%clk 0:00:43.5]} 43... Rxd8 {[%clk 0:00:28.1]} 44. Be8 {[%clk 0:00:43]}
44... Kf8 {[%clk 0:00:25.5]} 45. b3 {[%clk 0:00:41]} 45... Ke7 {[%clk
0:00:25.1]} 46. Kf1 {[%clk 0:00:40.3]} 46... Kd6 {[%clk 0:00:24.9]} 47. Rd3+
{[%clk 0:00:39.5]} 47... Bd4 {[%clk 0:00:23.5]} 48. f4 {[%clk 0:00:39.1]} 48...
Ke6 {[%clk 0:00:22.7]} 49. Ke2 {[%clk 0:00:39]} 49... Kf5 {[%clk 0:00:22.4]} 50.
Kf3 {[%clk 0:00:39]} 50... Ke6 {[%clk 0:00:22.4]} 51. g4 {[%clk 0:00:39]} 51...
Kd6 {[%clk 0:00:20.9]} 52. Rd2 {[%clk 0:00:38.8]} 52... Ke6 {[%clk 0:00:20.4]}
53. Ra2 {[%clk 0:00:38.3]} 53... Bc3 {[%clk 0:00:19.4]} 54. Re2+ {[%clk
0:00:38]} 54... Kd6 {[%clk 0:00:18.5]} 55. g5 {[%clk 0:00:38.1]} 55... Bd4
{[%clk 0:00:13.8]} 56. Kg4 {[%clk 0:00:37.8]} 56... Rb8 {[%clk 0:00:11.6]} 57.
Kf5 {[%clk 0:00:37.5]} 57... Kc7 {[%clk 0:00:09.4]} 58. Re6 {[%clk 0:00:36.6]}
58... hxg5 {[%clk 0:00:06.8]} 59. fxg5 {[%clk 0:00:36.1]} 59... Kd8 {[%clk
0:00:06.4]} 60. Rxa6 {[%clk 0:00:34.3]} 60... Be3 {[%clk 0:00:02.4]} 61. Rxa5
{[%clk 0:00:32.6]} 61... Bd4 {[%clk 0:00:03.1]} 62. Ra6 {[%clk 0:00:32]} 62...
Be3 {[%clk 0:00:03.5]} 63. h6 {[%clk 0:00:31.1]} 63... Bd4 {[%clk 0:00:04.2]}
64. h7 {[%clk 0:00:30.4]} 64... g6+ {[%clk 0:00:04.8]} 65. Rxg6 {[%clk
0:00:29.1]} 65... Bh8 {[%clk 0:00:04.2]} 66. Rg8 {[%clk 0:00:28.9]} 66... Bd4
{[%clk 0:00:04.7]} 67. h8=Q {[%clk 0:00:29.1]} 67... Bxh8 {[%clk 0:00:05.3]} 68.
Rxh8 {[%clk 0:00:28.6]} 68... Kc7 {[%clk 0:00:06]} 69. Ke6 {[%clk 0:00:27.5]}
69... Rb6+ {[%clk 0:00:05.7]} 70. Kd5 {[%clk 0:00:27]} 70... Rb8 {[%clk
0:00:03.8]} 71. Kxc5 {[%clk 0:00:26.9]} 71... Rd8 {[%clk 0:00:04.3]} 72. b4
{[%clk 0:00:26.7]} 72... Rb8 {[%clk 0:00:04.3]} 73. b5 {[%clk 0:00:26.8]} 73...
Rd8 {[%clk 0:00:04.7]} 74. b6+ {[%clk 0:00:26.9]} 74... Kb7 {[%clk 0:00:04.8]}
75. Rf8 {[%clk 0:00:25.6]} 75... Rb8 {[%clk 0:00:03.8]} 76. g6 {[%clk
0:00:25.6]} 76... Rd8 {[%clk 0:00:04.1]} 77. g7 {[%clk 0:00:25.7]} 77... Rb8
{[%clk 0:00:04.3]} 78. g8=Q {[%clk 0:00:25.8]} 78... Rd8 {[%clk 0:00:04.3]} 79.
Qd5+ {[%clk 0:00:25.6]} 1-0

[Event "*** Titled Tuesday Blitz"]
[Site "Chess.com"]
[Date "2021.03.30"]
[Round "10"]
[White "superchess02"]
[Black "Iskusnyh"]
[Result "1-0"]
[WhiteElo "2818"]
[BlackElo "2650"]
[TimeControl "180+1"]
[EndTime "11:59:39 PDT"]
[Termination "superchess02 won on time"]

1. a3 {[%clk 0:03:00.9]} 1... d5 {[%clk 0:02:49.9]} 2. e3 {[%clk 0:03:00.8]}
2... Nf6 {[%clk 0:02:49.1]} 3. b4 {[%clk 0:03:00.6]} 3... Bf5 {[%clk 0:02:48.1]}
4. Bb2 {[%clk 0:03:00.7]} 4... e6 {[%clk 0:02:48.1]} 5. c4 {[%clk 0:03:00.7]}
5... c6 {[%clk 0:02:46.1]} 6. Nc3 {[%clk 0:03:00.6]} 6... Nbd7 {[%clk
0:02:44.5]} 7. d4 {[%clk 0:03:00.8]} 7... Bd6 {[%clk 0:02:40]} 8. f4 {[%clk
0:02:54.9]} 8... O-O {[%clk 0:02:33.3]} 9. Nf3 {[%clk 0:02:55.1]} 9... Ne4
{[%clk 0:02:33.1]} 10. Be2 {[%clk 0:02:51.7]} 10... Nxc3 {[%clk 0:02:31.4]} 11.
Bxc3 {[%clk 0:02:51.5]} 11... Nf6 {[%clk 0:02:31.5]} 12. O-O {[%clk 0:02:48.9]}
12... Ne4 {[%clk 0:02:31.3]} 13. Be1 {[%clk 0:02:49.5]} 13... a5 {[%clk
0:02:27.3]} 14. c5 {[%clk 0:02:48.8]} 14... Bc7 {[%clk 0:02:26]} 15. b5 {[%clk
0:02:45.3]} 15... b6 {[%clk 0:02:24.9]} 16. cxb6 {[%clk 0:02:44.4]} 16... Bxb6
{[%clk 0:02:23]} 17. bxc6 {[%clk 0:02:44.6]} 17... Qd6 {[%clk 0:02:19.9]} 18.
Bb5 {[%clk 0:02:42]} 18... Bc7 {[%clk 0:01:56.6]} 19. a4 {[%clk 0:02:39.4]}
19... f6 {[%clk 0:01:50.2]} 20. h3 {[%clk 0:02:38.3]} 20... g5 {[%clk
0:01:46.6]} 21. Nd2 {[%clk 0:02:02.4]} 21... Nc3 {[%clk 0:01:04.4]} 22. Qb3
{[%clk 0:02:01.5]} 22... Ne4 {[%clk 0:00:49]} 23. Nxe4 {[%clk 0:01:52.2]} 23...
Bxe4 {[%clk 0:00:49.1]} 24. Qa3 {[%clk 0:01:52.8]} 24... Qd8 {[%clk 0:00:42.8]}
25. Bg3 {[%clk 0:01:46.1]} 25... Kh8 {[%clk 0:00:40.1]} 26. Bh2 {[%clk
0:01:42.3]} 26... Rg8 {[%clk 0:00:39.1]} 27. Ra2 {[%clk 0:01:39]} 27... g4
{[%clk 0:00:37.6]} 28. hxg4 {[%clk 0:01:35.2]} 28... Rxg4 {[%clk 0:00:37]} 29.
Rff2 {[%clk 0:01:28.8]} 29... Qe8 {[%clk 0:00:34.1]} 30. Be2 {[%clk 0:01:21.1]}
30... Rg7 {[%clk 0:00:29.5]} 31. Qc5 {[%clk 0:01:17]} 31... Qg6 {[%clk
0:00:22.1]} 32. Bf1 {[%clk 0:00:58.2]} 32... Rag8 {[%clk 0:00:20.8]} 33. Rab2
{[%clk 0:00:55]} 33... Qg4 {[%clk 0:00:18.5]} 34. Qc1 {[%clk 0:00:42.4]} 34...
Qh5 {[%clk 0:00:16.8]} 35. Qd2 {[%clk 0:00:41.4]} 35... Rg6 {[%clk 0:00:16.9]}
36. Qe2 {[%clk 0:00:40.9]} 36... Qf5 {[%clk 0:00:15.9]} 37. Rb7 {[%clk
0:00:36.8]} 37... Bd6 {[%clk 0:00:15.5]} 38. Rd7 {[%clk 0:00:36.6]} 38... Bb4
{[%clk 0:00:14.9]} 39. c7 {[%clk 0:00:36.1]} 39... e5 {[%clk 0:00:15.3]} 40. Rd8
{[%clk 0:00:36]} 40... exd4 {[%clk 0:00:15.3]} 41. c8=Q {[%clk 0:00:32.5]} 41...
Qxc8 {[%clk 0:00:14.4]} 42. Rxc8 {[%clk 0:00:32.9]} 42... Rxc8 {[%clk 0:00:15]}
43. f5 {[%clk 0:00:30]} 43... Rg5 {[%clk 0:00:13.5]} 44. Qa6 {[%clk 0:00:27.7]}
44... Rf8 {[%clk 0:00:12.2]} 45. exd4 {[%clk 0:00:27.3]} 45... Bc3 {[%clk
0:00:12.5]} 46. Qd6 {[%clk 0:00:20.5]} 46... Rf7 {[%clk 0:00:12.3]} 47. Qc5
{[%clk 0:00:19.5]} 47... Bb4 {[%clk 0:00:11.5]} 48. Qc8+ {[%clk 0:00:19.7]}
48... Rg8 {[%clk 0:00:10]} 49. Qe6 {[%clk 0:00:19.6]} 49... Kg7 {[%clk
0:00:08.1]} 50. Bb5 {[%clk 0:00:18.8]} 50... Bc3 {[%clk 0:00:07.5]} 51. Rf4
{[%clk 0:00:17.3]} 51... h5 {[%clk 0:00:07]} 52. Qb6 {[%clk 0:00:16.5]} 52...
Rc8 {[%clk 0:00:05.3]} 53. Bg3 {[%clk 0:00:15.6]} 53... Bd2 {[%clk 0:00:04.6]}
54. Rh4 {[%clk 0:00:15.2]} 54... Be3+ {[%clk 0:00:04.6]} 55. Kh2 {[%clk
0:00:15.7]} 55... Rc1 {[%clk 0:00:04.8]} 56. Rxh5 {[%clk 0:00:15.9]} 56... Bg1+
{[%clk 0:00:05]} 57. Kh3 {[%clk 0:00:16.3]} 57... Be3 {[%clk 0:00:04.9]} 58. Bh2
{[%clk 0:00:14.8]} 58... Rc3 {[%clk 0:00:04.2]} 59. g3 {[%clk 0:00:11.6]} 59...
Rc2 {[%clk 0:00:04.2]} 60. Qb8 {[%clk 0:00:09.2]} 60... Bg2+ {[%clk 0:00:04.1]}
61. Kh4 {[%clk 0:00:09.8]} 61... Bg5+ {[%clk 0:00:04.2]} 62. Rxg5+ {[%clk
0:00:08.8]} 62... fxg5+ {[%clk 0:00:04.4]} 63. Kxg5 {[%clk 0:00:09.7]} 63... Rf2
{[%clk 0:00:03.8]} 64. Qe5+ {[%clk 0:00:09.7]} 64... Kh7 {[%clk 0:00:03.6]} 65.
g4 {[%clk 0:00:10.3]} 65... Be4 {[%clk 0:00:03.2]} 66. Kh4 {[%clk 0:00:08.7]}
66... Rg2 {[%clk 0:00:02.5]} 67. Be8 {[%clk 0:00:08.6]} 67... Rg7 {[%clk
0:00:02.5]} 68. Bg6+ {[%clk 0:00:08.5]} 68... Rxg6 {[%clk 0:00:03]} 69. fxg6+
{[%clk 0:00:09.4]} 69... Kxg6 {[%clk 0:00:02.5]} 70. Bf4 {[%clk 0:00:09.2]}
70... Bf3 {[%clk 0:00:02.1]} 71. Qd6+ {[%clk 0:00:07.9]} 71... Kf7 {[%clk
0:00:01.9]} 72. Qd7+ {[%clk 0:00:08]} 72... Kg6 {[%clk 0:00:01.7]} 73. Qf5+
{[%clk 0:00:07.5]} 1-0

[Event "*** Titled Tuesday Blitz"]
[Site "Chess.com"]
[Date "2021.03.30"]
[Round "10"]
[White "Ermito2020"]
[Black "AlexOstrovskiy"]
[Result "0-1"]
[WhiteElo "2545"]
[BlackElo "2751"]
[TimeControl "180+1"]
[EndTime "11:59:40 PDT"]
[Termination "AlexOstrovskiy won on time"]

1. e4 {[%clk 0:03:00.9]} 1... c6 {[%clk 0:02:59.3]} 2. d4 {[%clk 0:03:00.5]}
2... d5 {[%clk 0:03:00.2]} 3. e5 {[%clk 0:03:00.7]} 3... c5 {[%clk 0:03:00.3]}
4. Nf3 {[%clk 0:02:47.1]} 4... Bg4 {[%clk 0:02:57.1]} 5. c4 {[%clk 0:02:44.5]}
5... cxd4 {[%clk 0:02:57]} 6. cxd5 {[%clk 0:02:40.9]} 6... Qxd5 {[%clk
0:02:57.9]} 7. Nc3 {[%clk 0:02:40.8]} 7... Qa5 {[%clk 0:02:57.6]} 8. Qxd4 {[%clk
0:02:34]} 8... Bxf3 {[%clk 0:02:56.7]} 9. gxf3 {[%clk 0:02:34.9]} 9... Nc6
{[%clk 0:02:56]} 10. Bb5 {[%clk 0:02:33.7]} 10... Qxb5 {[%clk 0:02:45.4]} 11.
Nxb5 {[%clk 0:02:33.6]} 11... Nxd4 {[%clk 0:02:45.7]} 12. Nxd4 {[%clk
0:02:34.2]} 12... e6 {[%clk 0:02:46.4]} 13. Nb5 {[%clk 0:02:29.3]} 13... Rd8
{[%clk 0:02:42.5]} 14. Nxa7 {[%clk 0:02:00]} 14... Rd5 {[%clk 0:02:36.2]} 15.
Be3 {[%clk 0:01:57.5]} 15... Ne7 {[%clk 0:02:33.1]} 16. Rc1 {[%clk 0:01:56.2]}
16... Kd7 {[%clk 0:02:26.3]} 17. f4 {[%clk 0:01:53.1]} 17... g5 {[%clk
0:02:09.1]} 18. fxg5 {[%clk 0:01:48.4]} 18... Nf5 {[%clk 0:02:09.2]} 19. O-O
{[%clk 0:01:35.3]} 19... Bg7 {[%clk 0:02:06]} 20. Rfd1 {[%clk 0:01:18.2]} 20...
Nxe3 {[%clk 0:02:03.3]} 21. fxe3 {[%clk 0:01:17.4]} 21... Bxe5 {[%clk
0:02:00.1]} 22. e4 {[%clk 0:01:12.4]} 22... Rxd1+ {[%clk 0:01:58.3]} 23. Rxd1+
{[%clk 0:01:12]} 23... Ke7 {[%clk 0:01:59.2]} 24. Nb5 {[%clk 0:01:06.8]} 24...
Bxb2 {[%clk 0:01:55]} 25. Kf2 {[%clk 0:01:02.7]} 25... h6 {[%clk 0:01:53.3]} 26.
gxh6 {[%clk 0:00:49]} 26... Rxh6 {[%clk 0:01:54.2]} 27. Kg2 {[%clk 0:00:48.5]}
27... Be5 {[%clk 0:01:47.1]} 28. h3 {[%clk 0:00:48.7]} 28... Rg6+ {[%clk
0:01:45.9]} 29. Kf2 {[%clk 0:00:48.5]} 29... Rg3 {[%clk 0:01:41.5]} 30. Rh1
{[%clk 0:00:48]} 30... Rd3 {[%clk 0:01:35.1]} 31. a4 {[%clk 0:00:43.9]} 31...
Rd2+ {[%clk 0:01:32.8]} 32. Kf3 {[%clk 0:00:43.1]} 32... Ra2 {[%clk 0:01:32.9]}
33. h4 {[%clk 0:00:42.5]} 33... Ra3+ {[%clk 0:01:31.8]} 34. Ke2 {[%clk
0:00:37.6]} 34... Rxa4 {[%clk 0:01:31.5]} 35. Kd3 {[%clk 0:00:37.5]} 35... Rb4
{[%clk 0:01:23]} 36. Na7 {[%clk 0:00:37]} 36... Rb3+ {[%clk 0:00:59.9]} 37. Kc4
{[%clk 0:00:33.6]} 37... Re3 {[%clk 0:00:56.9]} 38. h5 {[%clk 0:00:32.9]} 38...
Rxe4+ {[%clk 0:00:56.6]} 39. Kd3 {[%clk 0:00:33.2]} 39... Rd4+ {[%clk
0:00:53.6]} 40. Ke3 {[%clk 0:00:33.1]} 40... Rd8 {[%clk 0:00:51.4]} 41. Nb5
{[%clk 0:00:32.2]} 41... f5 {[%clk 0:00:50.3]} 42. Kf3 {[%clk 0:00:27.6]} 42...
Kf6 {[%clk 0:00:48.1]} 43. h6 {[%clk 0:00:26.6]} 43... Kg6 {[%clk 0:00:42.6]}
44. h7 {[%clk 0:00:25.6]} 44... Rh8 {[%clk 0:00:42.1]} 45. Re1 {[%clk
0:00:25.1]} 45... Kf6 {[%clk 0:00:36.4]} 46. Rh1 {[%clk 0:00:24.8]} 46... Bb8
{[%clk 0:00:30.9]} 47. Rh6+ {[%clk 0:00:22.7]} 47... Kg5 {[%clk 0:00:22.9]} 48.
Rxe6 {[%clk 0:00:21.9]} 48... Rxh7 {[%clk 0:00:23.2]} 49. Nd4 {[%clk 0:00:21]}
49... Rh3+ {[%clk 0:00:20]} 50. Kg2 {[%clk 0:00:20.9]} 50... Rd3 {[%clk
0:00:17.1]} 51. Nf3+ {[%clk 0:00:18.8]} 51... Kf4 {[%clk 0:00:15.2]} 52. Ne1
{[%clk 0:00:18.2]} 52... Rd2+ {[%clk 0:00:13.9]} 53. Kf1 {[%clk 0:00:19.1]}
53... Ba7 {[%clk 0:00:12.7]} 54. Ng2+ {[%clk 0:00:15.7]} 54... Kg3 {[%clk
0:00:12.9]} 55. Rg6+ {[%clk 0:00:14.9]} 55... Kf3 {[%clk 0:00:12.5]} 56. Nh4+
{[%clk 0:00:14.2]} 56... Ke4 {[%clk 0:00:11.5]} 57. Re6+ {[%clk 0:00:13.7]}
57... Kd5 {[%clk 0:00:08.6]} 58. Re7 {[%clk 0:00:13.1]} 58... Rb2 {[%clk
0:00:06.2]} 59. Nxf5 {[%clk 0:00:11.3]} 59... Rf2+ {[%clk 0:00:05.8]} 60. Ke1
{[%clk 0:00:11.4]} 60... Rxf5 {[%clk 0:00:06.6]} 61. Rxb7 {[%clk 0:00:12.2]}
61... Bc5 {[%clk 0:00:07.2]} 62. Ke2 {[%clk 0:00:11.8]} 62... Kc4 {[%clk
0:00:06.3]} 63. Rd7 {[%clk 0:00:11.1]} 63... Rf2+ {[%clk 0:00:06.4]} 64. Ke1
{[%clk 0:00:10.6]} 64... Rh2 {[%clk 0:00:07]} 65. Kf1 {[%clk 0:00:09.2]} 65...
Bd4 {[%clk 0:00:07]} 66. Re7 {[%clk 0:00:08.2]} 66... Kd3 {[%clk 0:00:07.4]} 67.
Rd7 {[%clk 0:00:07.2]} 67... Rf2+ {[%clk 0:00:07.4]} 68. Ke1 {[%clk 0:00:06.2]}
68... Rf8 {[%clk 0:00:08]} 69. Rd6 {[%clk 0:00:04.9]} 69... Rf7 {[%clk
0:00:06.2]} 70. Rd8 {[%clk 0:00:03.9]} 70... Ke3 {[%clk 0:00:05.8]} 71. Kd1
{[%clk 0:00:03.2]} 71... Rb7 {[%clk 0:00:03.2]} 72. Kc2 {[%clk 0:00:01.6]} 72...
Rb2+ {[%clk 0:00:02.8]} 73. Kc1 {[%clk 0:00:02]} 73... Ra2 {[%clk 0:00:03.1]}
74. Re8+ {[%clk 0:00:01.1]} 74... Kd3 {[%clk 0:00:03.4]} 0-1